Workbook

Sheet 説明
A1: 標本平均の分布と大数の法則
A3: 説明
A4: n個の標本平均の分布は、抽出回数 N が大きくなるにしたがって正規分布に近づいていくことが知られています。
A5: また n が大きくなればなるほど、分布は、1/√nで、平均に近づいていくことが知られています。
A6: これらのことについては、教科書でも触れており、感覚的には理解できます。
A8: 今回、新学習指導要領に変わり、確率分布、統計分野が、より前面に出されてきたと思われます。
A9: 統計は苦手と感じるのは、感覚的な理解が不十分なことが原因ではないでしょうか。
A11: 実は私も統計分野は、ここ数年教えていません。理由は現在の勤務校では確率分布、統計分野は教えないで、
A12: 他の分野を選択履修しているからです。このような学校は意外と多いのではないでしょうか
A14: しかし、新学習指導要領になり、もはや確率分布や統計は避けては通れないものになりそうです。
A15: そこで、この分野において、教科書では説明が省いているような個所を、生徒に直接、目に見える形で
A16: 具現化できればと思い、エクセルを用いてさまざまな事象をシュミレーションすることを考えました。
A18: エクセルについては、難しいプログラミング技術は持っておりませんが、いろいろ調べながらコツコツ
A19: 作成しました。新学習指導要領での授業の一助になればと思っています。
A21: 作成したエクセルファイルはホームページで公開し、発信、共有を図っていきたいと考えています。
A23: ファイルの説明
A25: 水色 | B25: の部分は数式が入っているセルです。
A26: 黄色 | B26: の部分は数値が変更できるセルです。
A28: プログラミングの流れは、次のとおりです。
A29: １、まず３００個のデータを用意しました。
A30: ２、ランダム関数を用いて、重複しないk個の数字をランダムに取り出します。
A31: これは非復元抽出のため、多少手間がかかります。
A32: ３、２で取り出したk個の数字を用いて、VLOOKUP関数で、データをk個ランダムに抜き出します。
A33: ４、このk個の標本平均を計算します。
A34: ５、この試行をn回繰り返します。ただしnは１００の倍数で設定します。
A35: ６、n回の試行の結果を度数分布表にします。
A36: ７、度数分布表をグラフにします。グラフは１００回ずつ更新されます。
A37: ８、クリアしない限り、結果は加算されます。
A39: 用意したデータは３００個ですが、個数を変えたり、数値をいろいろ変えてみると面白いと思います。
A40: 抜き出すk個についても、kをいろいろ変えてみると、分布が広がったり、平均に近づいたりするのが
A41: 観察できて、面白いです。

Sheet 法則
A1: 標本平均の分布と大数の法則、中心極限定理
B3: 抽出標本数 | C3: 10 | F3: 抽出（試行）回数 | H3: 100 | J3: 現在 | K3: 100 | L3: 回目
B4: 標本 | C4: 1 | D4: 2 | E4: 3 | F4: 4 | G4: 5 | H4: 6 | I4: 7 | J4: 8 | K4: 9 | L4: 10 | M4: 11 | N4: 12 | O4: 13 | P4: 14 | Q4: 15 | R4: 16 | S4: 17 | T4: 18 | U4: 19 | V4: 20 | W4: 21 | X4: 22 | Y4: 23 | Z4: 24 | AA4: 25 | AB4: 26 | AC4: 27 | AD4: 28 | AE4: 29 | AF4: 30 | AG4: 31 | AH4: 32 | AI4: 33 | AJ4: 34 | AK4: 35 | AL4: 36 | AM4: 37 | AN4: 38 | AO4: 39 | AP4: 40 | AQ4: 41 | AR4: 42 | AS4: 43 | AT4: 44 | AU4: 45 | AV4: 46 | AW4: 47 | AX4: 48 | AY4: 49 | AZ4: 50 | BA4: 51 | BB4: 52 | BC4: 53 | BD4: 54 | BE4: 55 | BF4: 56 | BG4: 57 | BH4: 58 | BI4: 59 | BJ4: 60 | BK4: 61 | BL4: 62 | BM4: 63 | BN4: 64 | BO4: 65 | BP4: 66 | BQ4: 67 | BR4: 68 | BS4: 69 | BT4: 70 | BU4: 71 | BV4: 72 | BW4: 73 | BX4: 74 | BY4: 75 | BZ4: 76 | CA4: 77 | CB4: 78 | CC4: 79 | CD4: 80 | CE4: 81 | CF4: 82 | CG4: 83 | CH4: 84 | CI4: 85 | CJ4: 86 | CK4: 87 | CL4: 88 | CM4: 89 | CN4: 90 | CO4: 91 | CP4: 92 | CQ4: 93 | CR4: 94 | CS4: 95 | CT4: 96 | CU4: 97 | CV4: 98 | CW4: 99 | CX4: 100
B5: 抽出No | C5: 50 | D5: 67 | E5: 79 | F5: 93 | G5: 122 | H5: 141 | I5: 166 | J5: 172 | K5: 239 | L5: 242
B6: 抽出データ | C6: =IF(C5="","",VLOOKUP(C5,$A$49:$B$348,2,FALSE)) -> 80 | D6: 0 | E6: 60 | F6: 90 | G6: 85 | H6: 35 | I6: 90 | J6: 25 | K6: 25 | L6: 40 | AI6: =IF(AI5="","",VLOOKUP(AI5,$A$49:$B$348,2,FALSE)) ->  | BO6: =IF(BO5="","",VLOOKUP(BO5,$A$49:$B$348,2,FALSE)) ->  | CU6: =IF(CU5="","",VLOOKUP(CU5,$A$49:$B$348,2,FALSE)) ->  | CV6: =IF(CV5="","",VLOOKUP(CV5,$A$49:$B$348,2,FALSE)) ->  | CW6: =IF(CW5="","",VLOOKUP(CW5,$A$49:$B$348,2,FALSE)) ->  | CX6: =IF(CX5="","",VLOOKUP(CX5,$A$49:$B$348,2,FALSE)) -> 
B7: 標本平均 | C7: =ROUND(AVERAGE(C6:CX6),1) -> 53
B8: 母集団の平均 | C8: =AVERAGE(B49:B348) -> 63.85
B9: 標本平均の平均 | C9: 64.554
B10: 標本平均の標準偏差 | C10: 9.54961172
B30: データはB列の9行目以降にありますが、これは自由に変えられます。
B31: データを変えたとしても分布が正規分布に近づくことがわかります。
G44: 度数分布作成欄
G45: 階級の幅 | I45: 度数チェック | J45: 総数 | K45: 平均 | L45: 標準偏差
G46: 1 | I46: =SUM(I49:I239) -> 100 | J46: =SUM(J49:J148) -> 500 | K46: =SUM(K49:K148)/$J$46 -> 64.554 | L46: =SQRT(SUM(L49:L148)/J46-(K46)^2) -> 9.54961172
A47: 母集団の格納場所 | D47: データ抽出欄 | N47: 乱数生成欄
A48: No | B48: 点数 | D48: 回数 | E48: 標本平均 | G48: 階級 | H48: 階級値 | I48: 度数 | J48: 総度数 | K48: 階級値*総度数 | L48: 階級値の２乗*総度数 | N48: 乱数の範囲 | O48: 1から | P48: 300
A49: 1 | B49: 0 | D49: 1 | E49: 48 | G49: 0 | H49: =IF(G50>100,"",(G49+G50)/2) -> 0.5 | I49: =COUNTIF($E$49:$E$148,"<"&G50)-COUNTIF($E$49:$E$148,"<"&G49) -> 0 | J49: 0 | K49: =H49*J49 -> 0 | L49: =H49^2*J49 -> 0 | N49: 求めたい乱数の個数 | P49: =C3 -> 10
A50: 2 | B50: 5 | D50: 2 | E50: 61.5 | G50: =G49+$G$46 -> 1 | H50: =IF(G51>100,"",(G50+G51)/2) -> 1.5 | I50: 0 | J50: 0 | K50: =H50*J50 -> 0 | L50: =H50^2*J50 -> 0
A51: 3 | B51: 10 | D51: 3 | E51: 58.5 | G51: 2 | H51: 2.5 | I51: 0 | J51: 0 | K51: 0 | L51: 0 | N51: 乱数発生 | O51: 重複削除 | P51: 取出し乱数 | R51: 小さい順に並べて、間をつめる
A52: 4 | B52: 15 | D52: 4 | E52: 54 | G52: 3 | H52: 3.5 | I52: 0 | J52: 0 | K52: 0 | L52: 0 | N52: =INT(RAND()*($P$48))+1 -> 118 | O52: =N52 -> 118 | P52: =N52 -> 118 | R52: 50
A53: 5 | B53: 20 | D53: 5 | E53: 88.5 | G53: 4 | H53: 4.5 | I53: 0 | J53: 0 | K53: 0 | L53: 0 | N53: 42 | O53: =IF(COUNTIF(N$52:N52,N53)=0,N53,"") -> 42 | P53: =IF(COUNTIF(O$52:O52,">0")<$P$49,O53,"") -> 42 | R53: 67
A54: 6 | B54: 25 | D54: 6 | E54: 50.5 | G54: 5 | H54: 5.5 | I54: 0 | J54: 0 | K54: 0 | L54: 0 | N54: 23 | O54: =IF(COUNTIF(N$52:N53,N54)=0,N54,"") -> 23 | P54: =IF(COUNTIF(O$52:O53,">0")<$P$49,O54,"") -> 23 | R54: 79
A55: 7 | B55: 30 | D55: 7 | E55: 61.5 | G55: 6 | H55: 6.5 | I55: 0 | J55: 0 | K55: 0 | L55: 0 | N55: 269 | O55: =IF(COUNTIF(N$52:N54,N55)=0,N55,"") -> 269 | P55: =IF(COUNTIF(O$52:O54,">0")<$P$49,O55,"") -> 269 | R55: 93
A56: 8 | B56: 35 | D56: 8 | E56: 69 | G56: 7 | H56: 7.5 | I56: 0 | J56: 0 | K56: 0 | L56: 0 | N56: 153 | O56: =IF(COUNTIF(N$52:N55,N56)=0,N56,"") -> 153 | P56: =IF(COUNTIF(O$52:O55,">0")<$P$49,O56,"") -> 153 | R56: 122
A57: 9 | B57: 40 | D57: 9 | E57: 65 | G57: 8 | H57: 8.5 | I57: 0 | J57: 0 | K57: 0 | L57: 0 | N57: 196 | O57: =IF(COUNTIF(N$52:N56,N57)=0,N57,"") -> 196 | P57: =IF(COUNTIF(O$52:O56,">0")<$P$49,O57,"") -> 196 | R57: 141
A58: 10 | B58: 45 | D58: 10 | E58: 70.5 | G58: 9 | H58: 9.5 | I58: 0 | J58: 0 | K58: 0 | L58: 0 | N58: 80 | O58: =IF(COUNTIF(N$52:N57,N58)=0,N58,"") -> 80 | P58: =IF(COUNTIF(O$52:O57,">0")<$P$49,O58,"") -> 80 | R58: 166
A59: 11 | B59: 50 | D59: 11 | E59: 65.5 | G59: 10 | H59: 10.5 | I59: 0 | J59: 0 | K59: 0 | L59: 0 | N59: 192 | O59: =IF(COUNTIF(N$52:N58,N59)=0,N59,"") -> 192 | P59: =IF(COUNTIF(O$52:O58,">0")<$P$49,O59,"") -> 192 | R59: 172
A60: 12 | B60: 55 | D60: 12 | E60: 58 | G60: 11 | H60: 11.5 | I60: 0 | J60: 0 | K60: 0 | L60: 0 | N60: 202 | O60: =IF(COUNTIF(N$52:N59,N60)=0,N60,"") -> 202 | P60: =IF(COUNTIF(O$52:O59,">0")<$P$49,O60,"") -> 202 | R60: 239
A61: 13 | B61: 60 | D61: 13 | E61: 58 | G61: 12 | H61: 12.5 | I61: 0 | J61: 0 | K61: 0 | L61: 0 | N61: 18 | O61: =IF(COUNTIF(N$52:N60,N61)=0,N61,"") -> 18 | P61: =IF(COUNTIF(O$52:O60,">0")<$P$49,O61,"") -> 18 | R61: 242
A62: 14 | B62: 65 | D62: 14 | E62: 64.5 | G62: 13 | H62: 13.5 | I62: 0 | J62: 0 | K62: 0 | L62: 0 | N62: 150 | O62: =IF(COUNTIF(N$52:N61,N62)=0,N62,"") -> 150 | P62: =IF(COUNTIF(O$52:O61,">0")<$P$49,O62,"") -> 
A63: 15 | B63: 70 | D63: 15 | E63: 52.5 | G63: 14 | H63: 14.5 | I63: 0 | J63: 0 | K63: 0 | L63: 0 | N63: 46 | O63: =IF(COUNTIF(N$52:N62,N63)=0,N63,"") -> 46 | P63: =IF(COUNTIF(O$52:O62,">0")<$P$49,O63,"") -> 
A64: 16 | B64: 75 | D64: 16 | E64: 81 | G64: 15 | H64: 15.5 | I64: 0 | J64: 0 | K64: 0 | L64: 0 | N64: 125 | O64: =IF(COUNTIF(N$52:N63,N64)=0,N64,"") -> 125 | P64: =IF(COUNTIF(O$52:O63,">0")<$P$49,O64,"") -> 
A65: 17 | B65: 80 | D65: 17 | E65: 73 | G65: 16 | H65: 16.5 | I65: 0 | J65: 0 | K65: 0 | L65: 0 | N65: 216 | O65: =IF(COUNTIF(N$52:N64,N65)=0,N65,"") -> 216 | P65: =IF(COUNTIF(O$52:O64,">0")<$P$49,O65,"") -> 
A66: 18 | B66: 85 | D66: 18 | E66: 68.5 | G66: 17 | H66: 17.5 | I66: 0 | J66: 0 | K66: 0 | L66: 0 | N66: 115 | O66: =IF(COUNTIF(N$52:N65,N66)=0,N66,"") -> 115 | P66: =IF(COUNTIF(O$52:O65,">0")<$P$49,O66,"") -> 
A67: 19 | B67: 90 | D67: 19 | E67: 65.5 | G67: 18 | H67: 18.5 | I67: 0 | J67: 0 | K67: 0 | L67: 0 | N67: 130 | O67: =IF(COUNTIF(N$52:N66,N67)=0,N67,"") -> 130 | P67: =IF(COUNTIF(O$52:O66,">0")<$P$49,O67,"") -> 
A68: 20 | B68: 95 | D68: 20 | E68: 48 | G68: 19 | H68: 19.5 | I68: 0 | J68: 0 | K68: 0 | L68: 0 | N68: 173 | O68: =IF(COUNTIF(N$52:N67,N68)=0,N68,"") -> 173 | P68: =IF(COUNTIF(O$52:O67,">0")<$P$49,O68,"") -> 
A69: 21 | B69: 100 | D69: 21 | E69: 56.5 | G69: 20 | H69: 20.5 | I69: 0 | J69: 0 | K69: 0 | L69: 0 | N69: 198 | O69: =IF(COUNTIF(N$52:N68,N69)=0,N69,"") -> 198 | P69: =IF(COUNTIF(O$52:O68,">0")<$P$49,O69,"") -> 
A70: 22 | B70: 85 | D70: 22 | E70: 50 | G70: 21 | H70: 21.5 | I70: 0 | J70: 0 | K70: 0 | L70: 0 | N70: 62 | O70: =IF(COUNTIF(N$52:N69,N70)=0,N70,"") -> 62 | P70: =IF(COUNTIF(O$52:O69,">0")<$P$49,O70,"") -> 
A71: 23 | B71: 90 | D71: 23 | E71: 65 | G71: 22 | H71: 22.5 | I71: 0 | J71: 0 | K71: 0 | L71: 0 | N71: 266 | O71: =IF(COUNTIF(N$52:N70,N71)=0,N71,"") -> 266 | P71: =IF(COUNTIF(O$52:O70,">0")<$P$49,O71,"") -> 
A72: 24 | B72: 85 | D72: 24 | E72: 74 | G72: 23 | H72: 23.5 | I72: 0 | J72: 0 | K72: 0 | L72: 0 | N72: 237 | O72: =IF(COUNTIF(N$52:N71,N72)=0,N72,"") -> 237 | P72: =IF(COUNTIF(O$52:O71,">0")<$P$49,O72,"") -> 
A73: 25 | B73: 90 | D73: 25 | E73: 54.5 | G73: 24 | H73: 24.5 | I73: 0 | J73: 0 | K73: 0 | L73: 0 | N73: 100 | O73: =IF(COUNTIF(N$52:N72,N73)=0,N73,"") -> 100 | P73: =IF(COUNTIF(O$52:O72,">0")<$P$49,O73,"") -> 
A74: 26 | B74: 85 | D74: 26 | E74: 76 | G74: 25 | H74: 25.5 | I74: 0 | J74: 0 | K74: 0 | L74: 0 | N74: 161 | O74: =IF(COUNTIF(N$52:N73,N74)=0,N74,"") -> 161 | P74: =IF(COUNTIF(O$52:O73,">0")<$P$49,O74,"") -> 
A75: 27 | B75: 90 | D75: 27 | E75: 71.5 | G75: 26 | H75: 26.5 | I75: 0 | J75: 0 | K75: 0 | L75: 0 | N75: 45 | O75: =IF(COUNTIF(N$52:N74,N75)=0,N75,"") -> 45 | P75: =IF(COUNTIF(O$52:O74,">0")<$P$49,O75,"") -> 
A76: 28 | B76: 85 | D76: 28 | E76: 36 | G76: 27 | H76: 27.5 | I76: 0 | J76: 0 | K76: 0 | L76: 0 | N76: 132 | O76: =IF(COUNTIF(N$52:N75,N76)=0,N76,"") -> 132 | P76: =IF(COUNTIF(O$52:O75,">0")<$P$49,O76,"") -> 
A77: 29 | B77: 90 | D77: 29 | E77: 63.5 | G77: 28 | H77: 28.5 | I77: 0 | J77: 0 | K77: 0 | L77: 0 | N77: 137 | O77: =IF(COUNTIF(N$52:N76,N77)=0,N77,"") -> 137 | P77: =IF(COUNTIF(O$52:O76,">0")<$P$49,O77,"") -> 
A78: 30 | B78: 85 | D78: 30 | E78: 65.5 | G78: 29 | H78: 29.5 | I78: 1 | J78: 1 | K78: 29.5 | L78: 870.25 | N78: 289 | O78: =IF(COUNTIF(N$52:N77,N78)=0,N78,"") -> 289 | P78: =IF(COUNTIF(O$52:O77,">0")<$P$49,O78,"") -> 
A79: 31 | B79: 90 | D79: 31 | E79: 50.5 | G79: 30 | H79: 30.5 | I79: 0 | J79: 0 | K79: 0 | L79: 0 | N79: 42 | O79: =IF(COUNTIF(N$52:N78,N79)=0,N79,"") ->  | P79: =IF(COUNTIF(O$52:O78,">0")<$P$49,O79,"") -> 
A80: 32 | B80: 85 | D80: 32 | E80: 66 | G80: 31 | H80: 31.5 | I80: 0 | J80: 0 | K80: 0 | L80: 0 | N80: 203 | O80: =IF(COUNTIF(N$52:N79,N80)=0,N80,"") -> 203 | P80: =IF(COUNTIF(O$52:O79,">0")<$P$49,O80,"") -> 
A81: 33 | B81: 90 | D81: 33 | E81: 82 | G81: 32 | H81: 32.5 | I81: =COUNTIF($E$49:$E$148,"<"&G82)-COUNTIF($E$49:$E$148,"<"&G81) -> 0 | J81: 0 | K81: 0 | L81: 0 | N81: 95 | O81: =IF(COUNTIF(N$52:N80,N81)=0,N81,"") -> 95 | P81: =IF(COUNTIF(O$52:O80,">0")<$P$49,O81,"") -> 
A82: 34 | B82: 0 | D82: 34 | E82: 64 | G82: 33 | H82: 33.5 | I82: 0 | J82: 1 | K82: 33.5 | L82: 1122.25 | N82: 235 | O82: =IF(COUNTIF(N$52:N81,N82)=0,N82,"") -> 235 | P82: =IF(COUNTIF(O$52:O81,">0")<$P$49,O82,"") -> 
A83: 35 | B83: 5 | D83: 35 | E83: 80 | G83: 34 | H83: 34.5 | I83: 0 | J83: 1 | K83: 34.5 | L83: 1190.25 | N83: 249 | O83: =IF(COUNTIF(N$52:N82,N83)=0,N83,"") -> 249 | P83: =IF(COUNTIF(O$52:O82,">0")<$P$49,O83,"") -> 
A84: 36 | B84: 10 | D84: 36 | E84: 68 | G84: 35 | H84: 35.5 | I84: 0 | J84: 0 | K84: 0 | L84: 0 | N84: =INT(RAND()*($P$48))+1 -> 209 | O84: =IF(COUNTIF(N$52:N83,N84)=0,N84,"") -> 209 | P84: =IF(COUNTIF(O$52:O83,">0")<$P$49,O84,"") -> 
A85: 37 | B85: 15 | D85: 37 | E85: 63 | G85: 36 | H85: 36.5 | I85: 1 | J85: 1 | K85: 36.5 | L85: 1332.25 | N85: 159 | O85: =IF(COUNTIF(N$52:N84,N85)=0,N85,"") -> 159 | P85: =IF(COUNTIF(O$52:O84,">0")<$P$49,O85,"") -> 
A86: 38 | B86: 20 | D86: 38 | E86: 78 | G86: 37 | H86: 37.5 | I86: 0 | J86: 0 | K86: 0 | L86: 0 | N86: 46 | O86: =IF(COUNTIF(N$52:N85,N86)=0,N86,"") ->  | P86: =IF(COUNTIF(O$52:O85,">0")<$P$49,O86,"") -> 
A87: 39 | B87: 25 | D87: 39 | E87: 52.5 | G87: 38 | H87: 38.5 | I87: 0 | J87: 0 | K87: 0 | L87: 0 | N87: 142 | O87: =IF(COUNTIF(N$52:N86,N87)=0,N87,"") -> 142 | P87: =IF(COUNTIF(O$52:O86,">0")<$P$49,O87,"") -> 
A88: 40 | B88: 30 | D88: 40 | E88: 57 | G88: 39 | H88: 39.5 | I88: 0 | J88: 0 | K88: 0 | L88: 0 | N88: 90 | O88: =IF(COUNTIF(N$52:N87,N88)=0,N88,"") -> 90 | P88: =IF(COUNTIF(O$52:O87,">0")<$P$49,O88,"") -> 
A89: 41 | B89: 35 | D89: 41 | E89: 77.5 | G89: 40 | H89: 40.5 | I89: 0 | J89: 0 | K89: 0 | L89: 0 | N89: 250 | O89: =IF(COUNTIF(N$52:N88,N89)=0,N89,"") -> 250 | P89: =IF(COUNTIF(O$52:O88,">0")<$P$49,O89,"") -> 
A90: 42 | B90: 40 | D90: 42 | E90: 61.5 | G90: 41 | H90: 41.5 | I90: 1 | J90: 1 | K90: 41.5 | L90: 1722.25 | N90: 51 | O90: =IF(COUNTIF(N$52:N89,N90)=0,N90,"") -> 51 | P90: =IF(COUNTIF(O$52:O89,">0")<$P$49,O90,"") -> 
A91: 43 | B91: 45 | D91: 43 | E91: 67 | G91: 42 | H91: 42.5 | I91: 0 | J91: 1 | K91: 42.5 | L91: 1806.25 | N91: 3 | O91: =IF(COUNTIF(N$52:N90,N91)=0,N91,"") -> 3 | P91: =IF(COUNTIF(O$52:O90,">0")<$P$49,O91,"") -> 
A92: 44 | B92: 50 | D92: 44 | E92: 71.5 | G92: 43 | H92: 43.5 | I92: 0 | J92: 1 | K92: 43.5 | L92: 1892.25 | N92: 298 | O92: =IF(COUNTIF(N$52:N91,N92)=0,N92,"") -> 298 | P92: =IF(COUNTIF(O$52:O91,">0")<$P$49,O92,"") -> 
A93: 45 | B93: 55 | D93: 45 | E93: 67.5 | G93: 44 | H93: 44.5 | I93: 0 | J93: 1 | K93: 44.5 | L93: 1980.25 | N93: 102 | O93: =IF(COUNTIF(N$52:N92,N93)=0,N93,"") -> 102 | P93: =IF(COUNTIF(O$52:O92,">0")<$P$49,O93,"") -> 
A94: 46 | B94: 60 | D94: 46 | E94: 57.5 | G94: 45 | H94: 45.5 | I94: 0 | J94: 6 | K94: 273 | L94: 12421.5 | N94: 21 | O94: =IF(COUNTIF(N$52:N93,N94)=0,N94,"") -> 21 | P94: =IF(COUNTIF(O$52:O93,">0")<$P$49,O94,"") -> 
A95: 47 | B95: 65 | D95: 47 | E95: 78 | G95: 46 | H95: 46.5 | I95: 1 | J95: 3 | K95: 139.5 | L95: 6486.75 | N95: 49 | O95: =IF(COUNTIF(N$52:N94,N95)=0,N95,"") -> 49 | P95: =IF(COUNTIF(O$52:O94,">0")<$P$49,O95,"") -> 
A96: 48 | B96: 70 | D96: 48 | E96: 70.5 | G96: 47 | H96: 47.5 | I96: 0 | J96: 2 | K96: 95 | L96: 4512.5 | N96: 89 | O96: =IF(COUNTIF(N$52:N95,N96)=0,N96,"") -> 89 | P96: =IF(COUNTIF(O$52:O95,">0")<$P$49,O96,"") -> 
A97: 49 | B97: 75 | D97: 49 | E97: 68.5 | G97: 48 | H97: 48.5 | I97: 4 | J97: 10 | K97: 485 | L97: 23522.5 | N97: 183 | O97: =IF(COUNTIF(N$52:N96,N97)=0,N97,"") -> 183 | P97: =IF(COUNTIF(O$52:O96,">0")<$P$49,O97,"") -> 
A98: 50 | B98: 80 | D98: 50 | E98: 78.5 | G98: 49 | H98: 49.5 | I98: 0 | J98: 10 | K98: 495 | L98: 24502.5 | N98: 258 | O98: =IF(COUNTIF(N$52:N97,N98)=0,N98,"") -> 258 | P98: =IF(COUNTIF(O$52:O97,">0")<$P$49,O98,"") -> 
A99: 51 | B99: 85 | D99: 51 | E99: 63 | G99: 50 | H99: 50.5 | I99: 3 | J99: 6 | K99: 303 | L99: 15301.5 | N99: 258 | O99: =IF(COUNTIF(N$52:N98,N99)=0,N99,"") ->  | P99: =IF(COUNTIF(O$52:O98,">0")<$P$49,O99,"") -> 
A100: 52 | B100: 90 | D100: 52 | E100: 72 | G100: 51 | H100: 51.5 | I100: 0 | J100: 4 | K100: 206 | L100: 10609 | N100: 76 | O100: =IF(COUNTIF(N$52:N99,N100)=0,N100,"") -> 76 | P100: =IF(COUNTIF(O$52:O99,">0")<$P$49,O100,"") -> 
A101: 53 | B101: 95 | D101: 53 | E101: 61.5 | G101: 52 | H101: 52.5 | I101: 3 | J101: 8 | K101: 420 | L101: 22050 | N101: 146 | O101: =IF(COUNTIF(N$52:N100,N101)=0,N101,"") -> 146 | P101: =IF(COUNTIF(O$52:O100,">0")<$P$49,O101,"") -> 
A102: 54 | B102: 100 | D102: 54 | E102: 71 | G102: 53 | H102: 53.5 | I102: 1 | J102: 12 | K102: 642 | L102: 34347 | N102: 121 | O102: =IF(COUNTIF(N$52:N101,N102)=0,N102,"") -> 121 | P102: =IF(COUNTIF(O$52:O101,">0")<$P$49,O102,"") -> 
A103: 55 | B103: 85 | D103: 55 | E103: 75.5 | G103: 54 | H103: 54.5 | I103: 5 | J103: 14 | K103: 763 | L103: 41583.5 | N103: 202 | O103: =IF(COUNTIF(N$52:N102,N103)=0,N103,"") ->  | P103: =IF(COUNTIF(O$52:O102,">0")<$P$49,O103,"") -> 
A104: 56 | B104: 90 | D104: 56 | E104: 64 | G104: 55 | H104: 55.5 | I104: 2 | J104: 8 | K104: 444 | L104: 24642 | N104: 152 | O104: =IF(COUNTIF(N$52:N103,N104)=0,N104,"") -> 152 | P104: =IF(COUNTIF(O$52:O103,">0")<$P$49,O104,"") -> 
A105: 57 | B105: 85 | D105: 57 | E105: 67 | G105: 56 | H105: 56.5 | I105: 1 | J105: 15 | K105: 847.5 | L105: 47883.75 | N105: 6 | O105: =IF(COUNTIF(N$52:N104,N105)=0,N105,"") -> 6 | P105: =IF(COUNTIF(O$52:O104,">0")<$P$49,O105,"") -> 
A106: 58 | B106: 90 | D106: 58 | E106: 52 | G106: 57 | H106: 57.5 | I106: 4 | J106: 14 | K106: 805 | L106: 46287.5 | N106: 222 | O106: =IF(COUNTIF(N$52:N105,N106)=0,N106,"") -> 222 | P106: =IF(COUNTIF(O$52:O105,">0")<$P$49,O106,"") -> 
A107: 59 | B107: 85 | D107: 59 | E107: 48 | G107: 58 | H107: 58.5 | I107: 4 | J107: 17 | K107: 994.5 | L107: 58178.25 | N107: 89 | O107: =IF(COUNTIF(N$52:N106,N107)=0,N107,"") ->  | P107: =IF(COUNTIF(O$52:O106,">0")<$P$49,O107,"") -> 
A108: 60 | B108: 90 | D108: 60 | E108: 54.5 | G108: 59 | H108: 59.5 | I108: 1 | J108: 15 | K108: 892.5 | L108: 53103.75 | N108: 16 | O108: =IF(COUNTIF(N$52:N107,N108)=0,N108,"") -> 16 | P108: =IF(COUNTIF(O$52:O107,">0")<$P$49,O108,"") -> 
A109: 61 | B109: 85 | D109: 61 | E109: 71 | G109: 60 | H109: 60.5 | I109: 5 | J109: 17 | K109: 1028.5 | L109: 62224.25 | N109: 160 | O109: =IF(COUNTIF(N$52:N108,N109)=0,N109,"") -> 160 | P109: =IF(COUNTIF(O$52:O108,">0")<$P$49,O109,"") -> 
A110: 62 | B110: 90 | D110: 62 | E110: 77.5 | G110: 61 | H110: 61.5 | I110: 5 | J110: 27 | K110: 1660.5 | L110: 102120.75 | N110: 280 | O110: =IF(COUNTIF(N$52:N109,N110)=0,N110,"") -> 280 | P110: =IF(COUNTIF(O$52:O109,">0")<$P$49,O110,"") -> 
A111: 63 | B111: 85 | D111: 63 | E111: 60 | G111: 62 | H111: 62.5 | I111: 1 | J111: 10 | K111: 625 | L111: 39062.5 | N111: 32 | O111: =IF(COUNTIF(N$52:N110,N111)=0,N111,"") -> 32 | P111: =IF(COUNTIF(O$52:O110,">0")<$P$49,O111,"") -> 
A112: 64 | B112: 90 | D112: 64 | E112: 74.5 | G112: 63 | H112: 63.5 | I112: 8 | J112: 28 | K112: 1778 | L112: 112903 | N112: 147 | O112: =IF(COUNTIF(N$52:N111,N112)=0,N112,"") -> 147 | P112: =IF(COUNTIF(O$52:O111,">0")<$P$49,O112,"") -> 
A113: 65 | B113: 85 | D113: 65 | E113: 29 | G113: 64 | H113: 64.5 | I113: =COUNTIF($E$49:$E$148,"<"&G114)-COUNTIF($E$49:$E$148,"<"&G113) -> 6 | J113: 26 | K113: 1677 | L113: 108166.5 | N113: 188 | O113: =IF(COUNTIF(N$52:N112,N113)=0,N113,"") -> 188 | P113: =IF(COUNTIF(O$52:O112,">0")<$P$49,O113,"") -> 
A114: 66 | B114: 90 | D114: 66 | E114: 75.5 | G114: =G113+$G$46 -> 65 | H114: =IF(G115>100,"",(G114+G115)/2) -> 65.5 | I114: 5 | J114: 19 | K114: =H114*J114 -> 1244.5 | L114: =H114^2*J114 -> 81514.75 | N114: 156 | O114: =IF(COUNTIF(N$52:N113,N114)=0,N114,"") -> 156 | P114: =IF(COUNTIF(O$52:O113,">0")<$P$49,O114,"") -> 
A115: 67 | B115: 0 | D115: 67 | E115: 64.5 | G115: 66 | H115: 66.5 | I115: 2 | J115: 12 | K115: 798 | L115: 53067 | N115: 58 | O115: =IF(COUNTIF(N$52:N114,N115)=0,N115,"") -> 58 | P115: =IF(COUNTIF(O$52:O114,">0")<$P$49,O115,"") -> 
A116: 68 | B116: 5 | D116: 68 | E116: 63 | G116: 67 | H116: 67.5 | I116: 3 | J116: 26 | K116: 1755 | L116: 118462.5 | N116: =INT(RAND()*($P$48))+1 -> 240 | O116: =IF(COUNTIF(N$52:N115,N116)=0,N116,"") -> 240 | P116: =IF(COUNTIF(O$52:O115,">0")<$P$49,O116,"") -> 
A117: 69 | B117: 10 | D117: 69 | E117: 55 | G117: 68 | H117: 68.5 | I117: 3 | J117: 21 | K117: 1438.5 | L117: 98537.25 | N117: 54 | O117: =IF(COUNTIF(N$52:N116,N117)=0,N117,"") -> 54 | P117: =IF(COUNTIF(O$52:O116,">0")<$P$49,O117,"") -> 
A118: 70 | B118: 15 | D118: 70 | E118: 55.5 | G118: 69 | H118: 69.5 | I118: 2 | J118: 18 | K118: 1251 | L118: 86944.5 | N118: 229 | O118: =IF(COUNTIF(N$52:N117,N118)=0,N118,"") -> 229 | P118: =IF(COUNTIF(O$52:O117,">0")<$P$49,O118,"") -> 
A119: 71 | B119: 20 | D119: 71 | E119: 60.5 | G119: 70 | H119: 70.5 | I119: 3 | J119: 13 | K119: 916.5 | L119: 64613.25 | N119: 278 | O119: =IF(COUNTIF(N$52:N118,N119)=0,N119,"") -> 278 | P119: =IF(COUNTIF(O$52:O118,">0")<$P$49,O119,"") -> 
A120: 72 | B120: 25 | D120: 72 | E120: 58 | G120: 71 | H120: 71.5 | I120: 4 | J120: 22 | K120: 1573 | L120: 112469.5 | N120: 146 | O120: =IF(COUNTIF(N$52:N119,N120)=0,N120,"") ->  | P120: =IF(COUNTIF(O$52:O119,">0")<$P$49,O120,"") -> 
A121: 73 | B121: 30 | D121: 73 | E121: 74 | G121: 72 | H121: 72.5 | I121: 1 | J121: 10 | K121: 725 | L121: 52562.5 | N121: 284 | O121: =IF(COUNTIF(N$52:N120,N121)=0,N121,"") -> 284 | P121: =IF(COUNTIF(O$52:O120,">0")<$P$49,O121,"") -> 
A122: 74 | B122: 35 | D122: 74 | E122: 64.5 | G122: 73 | H122: 73.5 | I122: 2 | J122: 10 | K122: 735 | L122: 54022.5 | N122: 201 | O122: =IF(COUNTIF(N$52:N121,N122)=0,N122,"") -> 201 | P122: =IF(COUNTIF(O$52:O121,">0")<$P$49,O122,"") -> 
A123: 75 | B123: 40 | D123: 75 | E123: 54.5 | G123: 74 | H123: 74.5 | I123: 3 | J123: 11 | K123: 819.5 | L123: 61052.75 | N123: 161 | O123: =IF(COUNTIF(N$52:N122,N123)=0,N123,"") ->  | P123: =IF(COUNTIF(O$52:O122,">0")<$P$49,O123,"") -> 
A124: 76 | B124: 45 | D124: 76 | E124: 60 | G124: 75 | H124: 75.5 | I124: 3 | J124: 14 | K124: 1057 | L124: 79803.5 | N124: 213 | O124: =IF(COUNTIF(N$52:N123,N124)=0,N124,"") -> 213 | P124: =IF(COUNTIF(O$52:O123,">0")<$P$49,O124,"") -> 
A125: 77 | B125: 50 | D125: 77 | E125: 70 | G125: 76 | H125: 76.5 | I125: 2 | J125: 14 | K125: 1071 | L125: 81931.5 | N125: 275 | O125: =IF(COUNTIF(N$52:N124,N125)=0,N125,"") -> 275 | P125: =IF(COUNTIF(O$52:O124,">0")<$P$49,O125,"") -> 
A126: 78 | B126: 55 | D126: 78 | E126: 69 | G126: 77 | H126: 77.5 | I126: 3 | J126: 8 | K126: 620 | L126: 48050 | N126: 5 | O126: =IF(COUNTIF(N$52:N125,N126)=0,N126,"") -> 5 | P126: =IF(COUNTIF(O$52:O125,">0")<$P$49,O126,"") -> 
A127: 79 | B127: 60 | D127: 79 | E127: 77.5 | G127: 78 | H127: 78.5 | I127: 3 | J127: 13 | K127: 1020.5 | L127: 80109.25 | N127: 37 | O127: =IF(COUNTIF(N$52:N126,N127)=0,N127,"") -> 37 | P127: =IF(COUNTIF(O$52:O126,">0")<$P$49,O127,"") -> 
A128: 80 | B128: 65 | D128: 80 | E128: 60.5 | G128: 79 | H128: 79.5 | I128: 0 | J128: 8 | K128: 636 | L128: 50562 | N128: 215 | O128: =IF(COUNTIF(N$52:N127,N128)=0,N128,"") -> 215 | P128: =IF(COUNTIF(O$52:O127,">0")<$P$49,O128,"") -> 
A129: 81 | B129: 70 | D129: 81 | E129: 76 | G129: 80 | H129: 80.5 | I129: 1 | J129: 5 | K129: 402.5 | L129: 32401.25 | N129: 20 | O129: =IF(COUNTIF(N$52:N128,N129)=0,N129,"") -> 20 | P129: =IF(COUNTIF(O$52:O128,">0")<$P$49,O129,"") -> 
A130: 82 | B130: 75 | D130: 82 | E130: 60 | G130: 81 | H130: 81.5 | I130: 1 | J130: 4 | K130: 326 | L130: 26569 | N130: 8 | O130: =IF(COUNTIF(N$52:N129,N130)=0,N130,"") -> 8 | P130: =IF(COUNTIF(O$52:O129,">0")<$P$49,O130,"") -> 
A131: 83 | B131: 80 | D131: 83 | E131: 63 | G131: 82 | H131: 82.5 | I131: 1 | J131: 5 | K131: 412.5 | L131: 34031.25 | N131: 197 | O131: =IF(COUNTIF(N$52:N130,N131)=0,N131,"") -> 197 | P131: =IF(COUNTIF(O$52:O130,">0")<$P$49,O131,"") -> 
A132: 84 | B132: 85 | D132: 84 | E132: 62 | G132: 83 | H132: 83.5 | I132: 0 | J132: 2 | K132: 167 | L132: 13944.5 | N132: 234 | O132: =IF(COUNTIF(N$52:N131,N132)=0,N132,"") -> 234 | P132: =IF(COUNTIF(O$52:O131,">0")<$P$49,O132,"") -> 
A133: 85 | B133: 90 | D133: 85 | E133: 64 | G133: 84 | H133: 84.5 | I133: 0 | J133: 2 | K133: 169 | L133: 14280.5 | N133: 94 | O133: =IF(COUNTIF(N$52:N132,N133)=0,N133,"") -> 94 | P133: =IF(COUNTIF(O$52:O132,">0")<$P$49,O133,"") -> 
A134: 86 | B134: 95 | D134: 86 | E134: 63.5 | G134: 85 | H134: 85.5 | I134: 0 | J134: 2 | K134: 171 | L134: 14620.5 | N134: 106 | O134: =IF(COUNTIF(N$52:N133,N134)=0,N134,"") -> 106 | P134: =IF(COUNTIF(O$52:O133,">0")<$P$49,O134,"") -> 
A135: 87 | B135: 100 | D135: 87 | E135: 57.5 | G135: 86 | H135: 86.5 | I135: 0 | J135: 0 | K135: 0 | L135: 0 | N135: 247 | O135: =IF(COUNTIF(N$52:N134,N135)=0,N135,"") -> 247 | P135: =IF(COUNTIF(O$52:O134,">0")<$P$49,O135,"") -> 
A136: 88 | B136: 85 | D136: 88 | E136: 54.5 | G136: 87 | H136: 87.5 | I136: 0 | J136: 0 | K136: 0 | L136: 0 | N136: 78 | O136: =IF(COUNTIF(N$52:N135,N136)=0,N136,"") -> 78 | P136: =IF(COUNTIF(O$52:O135,">0")<$P$49,O136,"") -> 
A137: 89 | B137: 90 | D137: 89 | E137: 63.5 | G137: 88 | H137: 88.5 | I137: 1 | J137: 1 | K137: 88.5 | L137: 7832.25 | N137: 182 | O137: =IF(COUNTIF(N$52:N136,N137)=0,N137,"") -> 182 | P137: =IF(COUNTIF(O$52:O136,">0")<$P$49,O137,"") -> 
A138: 90 | B138: 85 | D138: 90 | E138: 57.5 | G138: 89 | H138: 89.5 | I138: 0 | J138: 0 | K138: 0 | L138: 0 | N138: 43 | O138: =IF(COUNTIF(N$52:N137,N138)=0,N138,"") -> 43 | P138: =IF(COUNTIF(O$52:O137,">0")<$P$49,O138,"") -> 
A139: 91 | B139: 90 | D139: 91 | E139: 46.5 | G139: 90 | H139: 90.5 | I139: 0 | J139: 0 | K139: 0 | L139: 0 | N139: 236 | O139: =IF(COUNTIF(N$52:N138,N139)=0,N139,"") -> 236 | P139: =IF(COUNTIF(O$52:O138,">0")<$P$49,O139,"") -> 
A140: 92 | B140: 85 | D140: 92 | E140: 73.5 | G140: 91 | H140: 91.5 | I140: 0 | J140: 0 | K140: 0 | L140: 0 | N140: 173 | O140: =IF(COUNTIF(N$52:N139,N140)=0,N140,"") ->  | P140: =IF(COUNTIF(O$52:O139,">0")<$P$49,O140,"") -> 
A141: 93 | B141: 90 | D141: 93 | E141: 75.5 | G141: 92 | H141: 92.5 | I141: 0 | J141: 0 | K141: 0 | L141: 0 | N141: 207 | O141: =IF(COUNTIF(N$52:N140,N141)=0,N141,"") -> 207 | P141: =IF(COUNTIF(O$52:O140,">0")<$P$49,O141,"") -> 
A142: 94 | B142: 85 | D142: 94 | E142: 59 | G142: 93 | H142: 93.5 | I142: 0 | J142: 0 | K142: 0 | L142: 0 | N142: 240 | O142: =IF(COUNTIF(N$52:N141,N142)=0,N142,"") ->  | P142: =IF(COUNTIF(O$52:O141,">0")<$P$49,O142,"") -> 
A143: 95 | B143: 90 | D143: 95 | E143: 41 | G143: 94 | H143: 94.5 | I143: 0 | J143: 0 | K143: 0 | L143: 0 | N143: 186 | O143: =IF(COUNTIF(N$52:N142,N143)=0,N143,"") -> 186 | P143: =IF(COUNTIF(O$52:O142,">0")<$P$49,O143,"") -> 
A144: 96 | B144: 85 | D144: 96 | E144: 61.5 | G144: 95 | H144: 95.5 | I144: 0 | J144: 0 | K144: 0 | L144: 0 | N144: 173 | O144: =IF(COUNTIF(N$52:N143,N144)=0,N144,"") ->  | P144: =IF(COUNTIF(O$52:O143,">0")<$P$49,O144,"") -> 
A145: 97 | B145: 90 | D145: 97 | E145: 66 | G145: 96 | H145: 96.5 | I145: =COUNTIF($E$49:$E$148,"<"&G146)-COUNTIF($E$49:$E$148,"<"&G145) -> 0 | J145: 0 | K145: 0 | L145: 0 | N145: 78 | O145: =IF(COUNTIF(N$52:N144,N145)=0,N145,"") ->  | P145: =IF(COUNTIF(O$52:O144,">0")<$P$49,O145,"") -> 
A146: 98 | B146: 85 | D146: 98 | E146: 48.5 | G146: 97 | H146: 97.5 | I146: =COUNTIF($E$49:$E$148,"<"&G147)-COUNTIF($E$49:$E$148,"<"&G146) -> 0 | J146: 0 | K146: 0 | L146: 0 | N146: 16 | O146: =IF(COUNTIF(N$52:N145,N146)=0,N146,"") ->  | P146: =IF(COUNTIF(O$52:O145,">0")<$P$49,O146,"") -> 
A147: 99 | B147: 90 | D147: 99 | E147: 63.5 | G147: 98 | H147: 98.5 | I147: =COUNTIF($E$49:$E$148,"<"&G148)-COUNTIF($E$49:$E$148,"<"&G147) -> 0 | J147: 0 | K147: 0 | L147: 0 | N147: 292 | O147: =IF(COUNTIF(N$52:N146,N147)=0,N147,"") -> 292 | P147: =IF(COUNTIF(O$52:O146,">0")<$P$49,O147,"") -> 
A148: 100 | B148: 85 | D148: 100 | E148: 53 | G148: 99 | H148: 99.5 | I148: =COUNTIF($E$49:$E$148,"<"&G149)-COUNTIF($E$49:$E$148,"<"&G148) -> 0 | J148: 0 | K148: 0 | L148: 0 | N148: =INT(RAND()*($P$48))+1 -> 139 | O148: =IF(COUNTIF(N$52:N147,N148)=0,N148,"") -> 139 | P148: =IF(COUNTIF(O$52:O147,">0")<$P$49,O148,"") -> 
A149: 101 | B149: 0 | G149: 100 | N149: 215 | O149: =IF(COUNTIF(N$52:N148,N149)=0,N149,"") ->  | P149: =IF(COUNTIF(O$52:O148,">0")<$P$49,O149,"") -> 
A150: 102 | B150: 5 | N150: 278 | O150: =IF(COUNTIF(N$52:N149,N150)=0,N150,"") ->  | P150: =IF(COUNTIF(O$52:O149,">0")<$P$49,O150,"") -> 
A151: 103 | B151: 10 | N151: 292 | O151: =IF(COUNTIF(N$52:N150,N151)=0,N151,"") ->  | P151: =IF(COUNTIF(O$52:O150,">0")<$P$49,O151,"") -> 
A152: 104 | B152: 15 | N152: 24 | O152: =IF(COUNTIF(N$52:N151,N152)=0,N152,"") -> 24 | P152: =IF(COUNTIF(O$52:O151,">0")<$P$49,O152,"") -> 
A153: 105 | B153: 20 | N153: 295 | O153: =IF(COUNTIF(N$52:N152,N153)=0,N153,"") -> 295 | P153: =IF(COUNTIF(O$52:O152,">0")<$P$49,O153,"") -> 
A154: 106 | B154: 25 | N154: 75 | O154: =IF(COUNTIF(N$52:N153,N154)=0,N154,"") -> 75 | P154: =IF(COUNTIF(O$52:O153,">0")<$P$49,O154,"") -> 
A155: 107 | B155: 30 | N155: 179 | O155: =IF(COUNTIF(N$52:N154,N155)=0,N155,"") -> 179 | P155: =IF(COUNTIF(O$52:O154,">0")<$P$49,O155,"") -> 
A156: 108 | B156: 35 | N156: 165 | O156: =IF(COUNTIF(N$52:N155,N156)=0,N156,"") -> 165 | P156: =IF(COUNTIF(O$52:O155,">0")<$P$49,O156,"") -> 
A157: 109 | B157: 40 | N157: 163 | O157: =IF(COUNTIF(N$52:N156,N157)=0,N157,"") -> 163 | P157: =IF(COUNTIF(O$52:O156,">0")<$P$49,O157,"") -> 
A158: 110 | B158: 45 | N158: 222 | O158: =IF(COUNTIF(N$52:N157,N158)=0,N158,"") ->  | P158: =IF(COUNTIF(O$52:O157,">0")<$P$49,O158,"") -> 
A159: 111 | B159: 50 | N159: 13 | O159: =IF(COUNTIF(N$52:N158,N159)=0,N159,"") -> 13 | P159: =IF(COUNTIF(O$52:O158,">0")<$P$49,O159,"") -> 
A160: 112 | B160: 55 | N160: 164 | O160: =IF(COUNTIF(N$52:N159,N160)=0,N160,"") -> 164 | P160: =IF(COUNTIF(O$52:O159,">0")<$P$49,O160,"") -> 
A161: 113 | B161: 60 | N161: 267 | O161: =IF(COUNTIF(N$52:N160,N161)=0,N161,"") -> 267 | P161: =IF(COUNTIF(O$52:O160,">0")<$P$49,O161,"") -> 
A162: 114 | B162: 65 | N162: 152 | O162: =IF(COUNTIF(N$52:N161,N162)=0,N162,"") ->  | P162: =IF(COUNTIF(O$52:O161,">0")<$P$49,O162,"") -> 
A163: 115 | B163: 70 | N163: 285 | O163: =IF(COUNTIF(N$52:N162,N163)=0,N163,"") -> 285 | P163: =IF(COUNTIF(O$52:O162,">0")<$P$49,O163,"") -> 
A164: 116 | B164: 75 | N164: 282 | O164: =IF(COUNTIF(N$52:N163,N164)=0,N164,"") -> 282 | P164: =IF(COUNTIF(O$52:O163,">0")<$P$49,O164,"") -> 
A165: 117 | B165: 80 | N165: 93 | O165: =IF(COUNTIF(N$52:N164,N165)=0,N165,"") -> 93 | P165: =IF(COUNTIF(O$52:O164,">0")<$P$49,O165,"") -> 
A166: 118 | B166: 85 | N166: 158 | O166: =IF(COUNTIF(N$52:N165,N166)=0,N166,"") -> 158 | P166: =IF(COUNTIF(O$52:O165,">0")<$P$49,O166,"") -> 
A167: 119 | B167: 90 | N167: 188 | O167: =IF(COUNTIF(N$52:N166,N167)=0,N167,"") ->  | P167: =IF(COUNTIF(O$52:O166,">0")<$P$49,O167,"") -> 
A168: 120 | B168: 95 | N168: 215 | O168: =IF(COUNTIF(N$52:N167,N168)=0,N168,"") ->  | P168: =IF(COUNTIF(O$52:O167,">0")<$P$49,O168,"") -> 
A169: 121 | B169: 100 | N169: 18 | O169: =IF(COUNTIF(N$52:N168,N169)=0,N169,"") ->  | P169: =IF(COUNTIF(O$52:O168,">0")<$P$49,O169,"") -> 
A170: 122 | B170: 85 | N170: 36 | O170: =IF(COUNTIF(N$52:N169,N170)=0,N170,"") -> 36 | P170: =IF(COUNTIF(O$52:O169,">0")<$P$49,O170,"") -> 
A171: 123 | B171: 90 | N171: 44 | O171: =IF(COUNTIF(N$52:N170,N171)=0,N171,"") -> 44 | P171: =IF(COUNTIF(O$52:O170,">0")<$P$49,O171,"") -> 
A172: 124 | B172: 85 | N172: 156 | O172: =IF(COUNTIF(N$52:N171,N172)=0,N172,"") ->  | P172: =IF(COUNTIF(O$52:O171,">0")<$P$49,O172,"") -> 
A173: 125 | B173: 90 | N173: 14 | O173: =IF(COUNTIF(N$52:N172,N173)=0,N173,"") -> 14 | P173: =IF(COUNTIF(O$52:O172,">0")<$P$49,O173,"") -> 
A174: 126 | B174: 85 | N174: 30 | O174: =IF(COUNTIF(N$52:N173,N174)=0,N174,"") -> 30 | P174: =IF(COUNTIF(O$52:O173,">0")<$P$49,O174,"") -> 
A175: 127 | B175: 90 | N175: 137 | O175: =IF(COUNTIF(N$52:N174,N175)=0,N175,"") ->  | P175: =IF(COUNTIF(O$52:O174,">0")<$P$49,O175,"") -> 
A176: 128 | B176: 85 | N176: 273 | O176: =IF(COUNTIF(N$52:N175,N176)=0,N176,"") -> 273 | P176: =IF(COUNTIF(O$52:O175,">0")<$P$49,O176,"") -> 
A177: 129 | B177: 90 | N177: 120 | O177: =IF(COUNTIF(N$52:N176,N177)=0,N177,"") -> 120 | P177: =IF(COUNTIF(O$52:O176,">0")<$P$49,O177,"") -> 
A178: 130 | B178: 85 | N178: 171 | O178: =IF(COUNTIF(N$52:N177,N178)=0,N178,"") -> 171 | P178: =IF(COUNTIF(O$52:O177,">0")<$P$49,O178,"") -> 
A179: 131 | B179: 90 | N179: 34 | O179: =IF(COUNTIF(N$52:N178,N179)=0,N179,"") -> 34 | P179: =IF(COUNTIF(O$52:O178,">0")<$P$49,O179,"") -> 
A180: 132 | B180: 85 | N180: =INT(RAND()*($P$48))+1 -> 24 | O180: =IF(COUNTIF(N$52:N179,N180)=0,N180,"") ->  | P180: =IF(COUNTIF(O$52:O179,">0")<$P$49,O180,"") -> 
A181: 133 | B181: 90 | N181: 41 | O181: =IF(COUNTIF(N$52:N180,N181)=0,N181,"") -> 41 | P181: =IF(COUNTIF(O$52:O180,">0")<$P$49,O181,"") -> 
A182: 134 | B182: 0 | N182: 217 | O182: =IF(COUNTIF(N$52:N181,N182)=0,N182,"") -> 217 | P182: =IF(COUNTIF(O$52:O181,">0")<$P$49,O182,"") -> 
A183: 135 | B183: 5 | N183: 193 | O183: =IF(COUNTIF(N$52:N182,N183)=0,N183,"") -> 193 | P183: =IF(COUNTIF(O$52:O182,">0")<$P$49,O183,"") -> 
A184: 136 | B184: 10 | N184: 109 | O184: =IF(COUNTIF(N$52:N183,N184)=0,N184,"") -> 109 | P184: =IF(COUNTIF(O$52:O183,">0")<$P$49,O184,"") -> 
A185: 137 | B185: 15 | N185: 172 | O185: =IF(COUNTIF(N$52:N184,N185)=0,N185,"") -> 172 | P185: =IF(COUNTIF(O$52:O184,">0")<$P$49,O185,"") -> 
A186: 138 | B186: 20 | N186: 56 | O186: =IF(COUNTIF(N$52:N185,N186)=0,N186,"") -> 56 | P186: =IF(COUNTIF(O$52:O185,">0")<$P$49,O186,"") -> 
A187: 139 | B187: 25 | N187: 253 | O187: =IF(COUNTIF(N$52:N186,N187)=0,N187,"") -> 253 | P187: =IF(COUNTIF(O$52:O186,">0")<$P$49,O187,"") -> 
A188: 140 | B188: 30 | N188: 136 | O188: =IF(COUNTIF(N$52:N187,N188)=0,N188,"") -> 136 | P188: =IF(COUNTIF(O$52:O187,">0")<$P$49,O188,"") -> 
A189: 141 | B189: 35 | N189: 202 | O189: =IF(COUNTIF(N$52:N188,N189)=0,N189,"") ->  | P189: =IF(COUNTIF(O$52:O188,">0")<$P$49,O189,"") -> 
A190: 142 | B190: 40 | N190: 78 | O190: =IF(COUNTIF(N$52:N189,N190)=0,N190,"") ->  | P190: =IF(COUNTIF(O$52:O189,">0")<$P$49,O190,"") -> 
A191: 143 | B191: 45 | N191: 160 | O191: =IF(COUNTIF(N$52:N190,N191)=0,N191,"") ->  | P191: =IF(COUNTIF(O$52:O190,">0")<$P$49,O191,"") -> 
A192: 144 | B192: 50 | N192: 79 | O192: =IF(COUNTIF(N$52:N191,N192)=0,N192,"") -> 79 | P192: =IF(COUNTIF(O$52:O191,">0")<$P$49,O192,"") -> 
A193: 145 | B193: 55 | N193: 42 | O193: =IF(COUNTIF(N$52:N192,N193)=0,N193,"") ->  | P193: =IF(COUNTIF(O$52:O192,">0")<$P$49,O193,"") -> 
A194: 146 | B194: 60 | N194: 157 | O194: =IF(COUNTIF(N$52:N193,N194)=0,N194,"") -> 157 | P194: =IF(COUNTIF(O$52:O193,">0")<$P$49,O194,"") -> 
A195: 147 | B195: 65 | N195: 91 | O195: =IF(COUNTIF(N$52:N194,N195)=0,N195,"") -> 91 | P195: =IF(COUNTIF(O$52:O194,">0")<$P$49,O195,"") -> 
A196: 148 | B196: 70 | N196: 235 | O196: =IF(COUNTIF(N$52:N195,N196)=0,N196,"") ->  | P196: =IF(COUNTIF(O$52:O195,">0")<$P$49,O196,"") -> 
A197: 149 | B197: 75 | N197: 129 | O197: =IF(COUNTIF(N$52:N196,N197)=0,N197,"") -> 129 | P197: =IF(COUNTIF(O$52:O196,">0")<$P$49,O197,"") -> 
A198: 150 | B198: 80 | N198: 107 | O198: =IF(COUNTIF(N$52:N197,N198)=0,N198,"") -> 107 | P198: =IF(COUNTIF(O$52:O197,">0")<$P$49,O198,"") -> 
A199: 151 | B199: 85 | N199: 190 | O199: =IF(COUNTIF(N$52:N198,N199)=0,N199,"") -> 190 | P199: =IF(COUNTIF(O$52:O198,">0")<$P$49,O199,"") -> 
A200: 152 | B200: 90 | N200: 56 | O200: =IF(COUNTIF(N$52:N199,N200)=0,N200,"") ->  | P200: =IF(COUNTIF(O$52:O199,">0")<$P$49,O200,"") -> 
A201: 153 | B201: 95 | N201: 45 | O201: =IF(COUNTIF(N$52:N200,N201)=0,N201,"") ->  | P201: =IF(COUNTIF(O$52:O200,">0")<$P$49,O201,"") -> 
A202: 154 | B202: 100 | N202: 89 | O202: =IF(COUNTIF(N$52:N201,N202)=0,N202,"") ->  | P202: =IF(COUNTIF(O$52:O201,">0")<$P$49,O202,"") -> 
A203: 155 | B203: 85 | N203: 39 | O203: =IF(COUNTIF(N$52:N202,N203)=0,N203,"") -> 39 | P203: =IF(COUNTIF(O$52:O202,">0")<$P$49,O203,"") -> 
A204: 156 | B204: 90 | N204: 231 | O204: =IF(COUNTIF(N$52:N203,N204)=0,N204,"") -> 231 | P204: =IF(COUNTIF(O$52:O203,">0")<$P$49,O204,"") -> 
A205: 157 | B205: 85 | N205: 286 | O205: =IF(COUNTIF(N$52:N204,N205)=0,N205,"") -> 286 | P205: =IF(COUNTIF(O$52:O204,">0")<$P$49,O205,"") -> 
A206: 158 | B206: 90 | N206: 250 | O206: =IF(COUNTIF(N$52:N205,N206)=0,N206,"") ->  | P206: =IF(COUNTIF(O$52:O205,">0")<$P$49,O206,"") -> 
A207: 159 | B207: 85 | N207: 162 | O207: =IF(COUNTIF(N$52:N206,N207)=0,N207,"") -> 162 | P207: =IF(COUNTIF(O$52:O206,">0")<$P$49,O207,"") -> 
A208: 160 | B208: 90 | N208: 77 | O208: =IF(COUNTIF(N$52:N207,N208)=0,N208,"") -> 77 | P208: =IF(COUNTIF(O$52:O207,">0")<$P$49,O208,"") -> 
A209: 161 | B209: 85 | N209: 145 | O209: =IF(COUNTIF(N$52:N208,N209)=0,N209,"") -> 145 | P209: =IF(COUNTIF(O$52:O208,">0")<$P$49,O209,"") -> 
A210: 162 | B210: 90 | N210: 245 | O210: =IF(COUNTIF(N$52:N209,N210)=0,N210,"") -> 245 | P210: =IF(COUNTIF(O$52:O209,">0")<$P$49,O210,"") -> 
A211: 163 | B211: 85
A212: 164 | B212: 90
A213: 165 | B213: 85
A214: 166 | B214: 90
A215: 167 | B215: 0
A216: 168 | B216: 5
A217: 169 | B217: 10
A218: 170 | B218: 15
A219: 171 | B219: 20
A220: 172 | B220: 25
A221: 173 | B221: 30
A222: 174 | B222: 35
A223: 175 | B223: 40
A224: 176 | B224: 45
A225: 177 | B225: 50
A226: 178 | B226: 55
A227: 179 | B227: 60
A228: 180 | B228: 65
A229: 181 | B229: 70
A230: 182 | B230: 75
A231: 183 | B231: 80
A232: 184 | B232: 85
... 116 more rows
